[Event "Late-Titled-Tuesday-Blitz-May-07-2024"]
[Site "Chess.com"]
[Date "2024.05.07"]
[Round "5"]
[White "ameetghasi100"]
[Black "vladgoncharov"]
[Result "1/2-1/2"]
[WhiteElo "2798"]
[BlackElo "2586"]
[TimeControl "180+1"]
[EndTime "14:57:50 PDT"]
[Termination "Game drawn - insufficient material"]

1. b3 {[%clk 0:03:00.7]} 1... d5 {[%clk 0:02:57.1]} 2. Bb2 {[%clk 0:03:01.6]}
2... c6 {[%clk 0:02:56.8]} 3. e3 {[%clk 0:03:01.2]} 3... Bf5 {[%clk 0:02:56.6]}
4. Nf3 {[%clk 0:03:02.1]} 4... e6 {[%clk 0:02:56.5]} 5. h3 {[%clk 0:02:59.7]}
5... h6 {[%clk 0:02:55.6]} 6. c4 {[%clk 0:02:58.7]} 6... Nf6 {[%clk 0:02:54.4]}
7. Nc3 {[%clk 0:02:58.4]} 7... Be7 {[%clk 0:02:49.4]} 8. g4 {[%clk 0:02:57.6]}
8... Bh7 {[%clk 0:02:47.2]} 9. g5 {[%clk 0:02:53.2]} 9... hxg5 {[%clk
0:02:46.1]} 10. Nxg5 {[%clk 0:02:54.1]} 10... Bg6 {[%clk 0:02:45.8]} 11. Rg1
{[%clk 0:02:53.6]} 11... Bh5 {[%clk 0:02:38.2]} 12. Be2 {[%clk 0:02:35.7]} 12...
Bxe2 {[%clk 0:02:36.9]} 13. Nxe2 {[%clk 0:02:36.6]} 13... Nbd7 {[%clk
0:02:27.2]} 14. Nf4 {[%clk 0:02:35.4]} 14... Nc5 {[%clk 0:02:25.8]} 15. Qc2
{[%clk 0:02:23.6]} 15... Qd7 {[%clk 0:02:20.8]} 16. d4 {[%clk 0:02:19.4]} 16...
Na6 {[%clk 0:02:16.4]} 17. a3 {[%clk 0:02:19.1]} 17... Bd6 {[%clk 0:02:01.1]}
18. Nd3 {[%clk 0:02:10.1]} 18... O-O-O {[%clk 0:01:55.1]} 19. c5 {[%clk
0:02:08]} 19... Bb8 {[%clk 0:01:54]} 20. b4 {[%clk 0:02:07.4]} 20... Ne4 {[%clk
0:01:46.4]} 21. O-O-O {[%clk 0:02:07.4]} 21... Nxg5 {[%clk 0:01:39.6]} 22. Rxg5
{[%clk 0:02:08.3]} 22... f6 {[%clk 0:01:39.9]} 23. Rg2 {[%clk 0:02:07.7]} 23...
Rxh3 {[%clk 0:01:38.1]} 24. a4 {[%clk 0:02:08.2]} 24... g5 {[%clk 0:01:32.9]}
25. Qb3 {[%clk 0:01:55]} 25... Nc7 {[%clk 0:01:32.1]} 26. Bc3 {[%clk 0:01:47.4]}
26... a6 {[%clk 0:01:29.3]} 27. Kd2 {[%clk 0:01:44]} 27... Qh7 {[%clk
0:01:25.4]} 28. Qb1 {[%clk 0:01:43.8]} 28... Qe4 {[%clk 0:01:21.4]} 29. Rdg1
{[%clk 0:01:35.9]} 29... Rdh8 {[%clk 0:01:19.1]} 30. Qd1 {[%clk 0:01:36.2]}
30... Rh2 {[%clk 0:01:06.9]} 31. f3 {[%clk 0:01:33.5]} 31... Rxg2+ {[%clk
0:01:03.2]} 32. Rxg2 {[%clk 0:01:34.4]} 32... Qf5 {[%clk 0:01:03.3]} 33. Nf2
{[%clk 0:01:30.2]} 33... Ne8 {[%clk 0:01:00]} 34. Ke2 {[%clk 0:01:27.4]} 34...
Ng7 {[%clk 0:00:53.9]} 35. b5 {[%clk 0:01:22.4]} 35... axb5 {[%clk 0:00:53.2]}
36. axb5 {[%clk 0:01:22.3]} 36... cxb5 {[%clk 0:00:50.5]} 37. e4 {[%clk
0:01:22.4]} 37... dxe4 {[%clk 0:00:42.2]} 38. fxe4 {[%clk 0:01:23.3]} 38... Qf4
{[%clk 0:00:41.4]} 39. Bd2 {[%clk 0:01:18.4]} 39... Qc7 {[%clk 0:00:38.1]} 40.
Qb3 {[%clk 0:01:18.5]} 40... Qd7 {[%clk 0:00:36.6]} 41. Be3 {[%clk 0:01:15.3]}
41... Nh5 {[%clk 0:00:35.2]} 42. Nd3 {[%clk 0:00:58.4]} 42... Qc6 {[%clk
0:00:32.9]} 43. d5 {[%clk 0:00:57.6]} 43... exd5 {[%clk 0:00:31.4]} 44. exd5
{[%clk 0:00:58.5]} 44... Qe8 {[%clk 0:00:31]} 45. Kd2 {[%clk 0:00:58.9]} 45...
Bf4 {[%clk 0:00:26.3]} 46. Re2 {[%clk 0:00:57.6]} 46... Qd7 {[%clk 0:00:24.8]}
47. Qa2 {[%clk 0:00:47.6]} 47... Bb8 {[%clk 0:00:22.3]} 48. Kc2 {[%clk 0:00:40]}
48... Ng3 {[%clk 0:00:21.7]} 49. Rg2 {[%clk 0:00:36.9]} 49... Nf5 {[%clk
0:00:20.5]} 50. Bf2 {[%clk 0:00:35.9]} 50... Rh3 {[%clk 0:00:19.4]} 51. Qb3
{[%clk 0:00:31.2]} 51... Qe8 {[%clk 0:00:17.4]} 52. Bg1 {[%clk 0:00:31.5]} 52...
Qe4 {[%clk 0:00:17]} 53. Rd2 {[%clk 0:00:32]} 53... Qc4+ {[%clk 0:00:16.6]} 54.
Qxc4 {[%clk 0:00:32.4]} 54... bxc4 {[%clk 0:00:17.5]} 55. Nb4 {[%clk 0:00:32.1]}
55... Ne3+ {[%clk 0:00:16.7]} 56. Bxe3 {[%clk 0:00:32]} 56... Rxe3 {[%clk
0:00:16.3]} 57. Rd4 {[%clk 0:00:32.2]} 57... Be5 {[%clk 0:00:15.7]} 58. Rxc4
{[%clk 0:00:32.4]} 58... Kc7 {[%clk 0:00:14.6]} 59. d6+ {[%clk 0:00:30]} 59...
Kd7 {[%clk 0:00:13.9]} 60. Nd5 {[%clk 0:00:28.9]} 60... Re2+ {[%clk 0:00:13]}
61. Kd3 {[%clk 0:00:29.4]} 61... Re1 {[%clk 0:00:13.2]} 62. Rb4 {[%clk
0:00:29.5]} 62... Kc6 {[%clk 0:00:12.8]} 63. Ne7+ {[%clk 0:00:28.8]} 63... Kxc5
{[%clk 0:00:12.7]} 64. Rxb7 {[%clk 0:00:29.7]} 64... Rd1+ {[%clk 0:00:12]} 65.
Ke4 {[%clk 0:00:29.1]} 65... Rxd6 {[%clk 0:00:11.6]} 66. Nf5 {[%clk 0:00:28.8]}
66... Rd1 {[%clk 0:00:11.2]} 67. Rb3 {[%clk 0:00:28.6]} 67... Re1+ {[%clk
0:00:11.1]} 68. Kd3 {[%clk 0:00:27.7]} 68... Rf1 {[%clk 0:00:10.8]} 69. Ne3
{[%clk 0:00:27.2]} 69... Rf4 {[%clk 0:00:10.7]} 70. Rb1 {[%clk 0:00:25.1]} 70...
g4 {[%clk 0:00:10.4]} 71. Rc1+ {[%clk 0:00:23.2]} 71... Kd6 {[%clk 0:00:09.9]}
72. Ke2 {[%clk 0:00:23.5]} 72... g3 {[%clk 0:00:08.3]} 73. Rc8 {[%clk
0:00:22.6]} 73... Rf2+ {[%clk 0:00:08.1]} 74. Kd3 {[%clk 0:00:22]} 74... f5
{[%clk 0:00:06.7]} 75. Rg8 {[%clk 0:00:17.4]} 75... f4 {[%clk 0:00:06.3]} 76.
Nc4+ {[%clk 0:00:18]} 76... Kd5 {[%clk 0:00:05.1]} 77. Rd8+ {[%clk 0:00:17.9]}
77... Ke6 {[%clk 0:00:01.8]} 78. Re8+ {[%clk 0:00:18.2]} 78... Kf7 {[%clk
0:00:01.2]} 79. Rxe5 {[%clk 0:00:17.9]} 79... g2 {[%clk 0:00:02.1]} 80. Rg5
{[%clk 0:00:18.5]} 80... f3 {[%clk 0:00:02.3]} 81. Ne5+ {[%clk 0:00:19.1]} 81...
Kf6 {[%clk 0:00:02.5]} 82. Ke3 {[%clk 0:00:14.6]} 82... Re2+ {[%clk 0:00:02.4]}
83. Kxf3 {[%clk 0:00:09]} 83... Kxg5 {[%clk 0:00:02.4]} 84. Kxe2 {[%clk
0:00:09.6]} 84... g1=Q {[%clk 0:00:02.7]} 85. Nf3+ {[%clk 0:00:10.1]} 85... Kg4
{[%clk 0:00:03.6]} 86. Nxg1 {[%clk 0:00:11]} 1/2-1/2

[Event "Late-Titled-Tuesday-Blitz-May-07-2024"]
[Site "Chess.com"]
[Date "2024.05.07"]
[Round "5"]
[White "ViIIagra"]
[Black "ozates"]
[Result "1-0"]
[WhiteElo "2844"]
[BlackElo "2651"]
[TimeControl "180+1"]
[EndTime "14:58:59 PDT"]
[Termination "ViIIagra won by checkmate"]

1. g3 {[%clk 0:03:00.9]} 1... c5 {[%clk 0:02:59.9]} 2. Bg2 {[%clk 0:03:00.6]}
2... Nc6 {[%clk 0:03:00.4]} 3. c4 {[%clk 0:03:00.2]} 3... g6 {[%clk 0:03:00.5]}
4. h4 {[%clk 0:02:59]} 4... h6 {[%clk 0:02:57.5]} 5. h5 {[%clk 0:02:57.1]} 5...
g5 {[%clk 0:02:57.5]} 6. Nc3 {[%clk 0:02:57.5]} 6... Bg7 {[%clk 0:02:57.4]} 7.
d3 {[%clk 0:02:58]} 7... d6 {[%clk 0:02:57.8]} 8. f4 {[%clk 0:02:57.9]} 8... e5
{[%clk 0:02:47.3]} 9. fxg5 {[%clk 0:02:48.5]} 9... hxg5 {[%clk 0:02:46.7]} 10.
e4 {[%clk 0:02:48.9]} 10... Nd4 {[%clk 0:02:42.6]} 11. Nd5 {[%clk 0:02:45.7]}
11... Be6 {[%clk 0:02:33.7]} 12. Nf3 {[%clk 0:01:29.5]} 12... Bg4 {[%clk
0:01:42.5]} 13. Nxd4 {[%clk 0:01:25.8]} 13... Bxd1 {[%clk 0:01:37.8]} 14. Nf5
{[%clk 0:01:26.3]} 14... Bg4 {[%clk 0:01:27.7]} 15. Nxg7+ {[%clk 0:01:26]} 15...
Kf8 {[%clk 0:01:27.9]} 16. Ne3 {[%clk 0:01:26.7]} 16... Kxg7 {[%clk 0:01:22.3]}
17. Nxg4 {[%clk 0:01:25.9]} 17... Nh6 {[%clk 0:01:21.5]} 18. Ne3 {[%clk
0:01:24.2]} 18... Qd7 {[%clk 0:01:16.4]} 19. O-O {[%clk 0:01:03.4]} 19... Raf8
{[%clk 0:01:12.8]} 20. Rf5 {[%clk 0:00:57]} 20... Nxf5 {[%clk 0:01:06.2]} 21.
Nxf5+ {[%clk 0:00:57.1]} 21... Kh7 {[%clk 0:01:02.4]} 22. Bxg5 {[%clk
0:00:55.3]} 22... Rhg8 {[%clk 0:00:59.5]} 23. Bh4 {[%clk 0:00:54.4]} 23... Qa4
{[%clk 0:00:46.6]} 24. Ne3 {[%clk 0:00:41.3]} 24... Qb4 {[%clk 0:00:44.5]} 25.
Rf1 {[%clk 0:00:38.9]} 25... Qd2 {[%clk 0:00:40.4]} 26. Nd5 {[%clk 0:00:37.8]}
26... Qxd3 {[%clk 0:00:29.7]} 27. Kh2 {[%clk 0:00:25]} 27... f5 {[%clk
0:00:23.4]} 28. exf5 {[%clk 0:00:15.5]} 28... Qxc4 {[%clk 0:00:16.8]} 29. f6
{[%clk 0:00:14.2]} 29... Kh6 {[%clk 0:00:15.6]} 30. f7 {[%clk 0:00:09.9]} 30...
Rg4 {[%clk 0:00:15.8]} 31. Rf6+ {[%clk 0:00:08]} 31... Kh7 {[%clk 0:00:15.2]}
32. Kh3 {[%clk 0:00:04.5]} 32... Rxh4+ {[%clk 0:00:12]} 33. gxh4 {[%clk
0:00:05.4]} 33... Qd3+ {[%clk 0:00:11.6]} 34. Kh2 {[%clk 0:00:05.9]} 34... e4
{[%clk 0:00:09.8]} 35. Rf5 {[%clk 0:00:04.2]} 35... e3 {[%clk 0:00:08.9]} 36.
Be4 {[%clk 0:00:04.9]} 36... Qd2+ {[%clk 0:00:06.4]} 37. Rf2+ {[%clk 0:00:05.2]}
37... Kh6 {[%clk 0:00:06.5]} 38. Rxd2 {[%clk 0:00:03.8]} 38... exd2 {[%clk
0:00:07.4]} 39. Nc3 {[%clk 0:00:04.2]} 39... Rxf7 {[%clk 0:00:07.6]} 40. Kg2
{[%clk 0:00:04.4]} 40... Rf4 {[%clk 0:00:06.5]} 41. Bf3 {[%clk 0:00:04.3]} 41...
Rxh4 {[%clk 0:00:06.6]} 42. Bd1 {[%clk 0:00:04.9]} 42... a6 {[%clk 0:00:04.7]}
43. Kf2 {[%clk 0:00:05.5]} 43... b5 {[%clk 0:00:04.8]} 44. Ke2 {[%clk
0:00:06.2]} 44... Rh2+ {[%clk 0:00:05.3]} 45. Kd3 {[%clk 0:00:05.8]} 45... b4
{[%clk 0:00:04.9]} 46. Ne4 {[%clk 0:00:06]} 46... d5 {[%clk 0:00:03.5]} 47. Nxc5
{[%clk 0:00:06.2]} 47... a5 {[%clk 0:00:04.1]} 48. Nb3 {[%clk 0:00:06.2]} 48...
a4 {[%clk 0:00:04.3]} 49. Nxd2 {[%clk 0:00:06.8]} 49... Rh1 {[%clk 0:00:04.2]}
50. Bxa4 {[%clk 0:00:05.4]} 50... Rh3+ {[%clk 0:00:02.7]} 51. Kc2 {[%clk
0:00:05.4]} 51... Kxh5 {[%clk 0:00:03]} 52. Bb3 {[%clk 0:00:05.9]} 52... Kg5
{[%clk 0:00:03.3]} 53. Bxd5 {[%clk 0:00:05.8]} 53... Kf4 {[%clk 0:00:04]} 54.
Be6 {[%clk 0:00:04.6]} 54... Rh2 {[%clk 0:00:04.1]} 55. Kd3 {[%clk 0:00:04.5]}
55... Ke5 {[%clk 0:00:04.6]} 56. Bc4 {[%clk 0:00:05]} 56... Rh3+ {[%clk
0:00:04.3]} 57. Kc2 {[%clk 0:00:05.4]} 57... Kd4 {[%clk 0:00:05]} 58. Bf1 {[%clk
0:00:05.9]} 58... Rh2 {[%clk 0:00:04.8]} 59. Kd1 {[%clk 0:00:05.8]} 59... Ke3
{[%clk 0:00:04.7]} 60. Nc4+ {[%clk 0:00:05.9]} 60... Kd4 {[%clk 0:00:05.3]} 61.
Be2 {[%clk 0:00:05.6]} 61... Rh1+ {[%clk 0:00:04.2]} 62. Kd2 {[%clk 0:00:06.1]}
62... Rh2 {[%clk 0:00:05]} 63. Ne3 {[%clk 0:00:05]} 63... Rh1 {[%clk 0:00:05.1]}
64. Nc2+ {[%clk 0:00:05.5]} 64... Kc5 {[%clk 0:00:05.2]} 65. b3 {[%clk
0:00:06.2]} 65... Rh2 {[%clk 0:00:04.9]} 66. Kd1 {[%clk 0:00:06.3]} 66... Rh1+
{[%clk 0:00:05.3]} 67. Kd2 {[%clk 0:00:06.9]} 67... Rh2 {[%clk 0:00:05.9]} 68.
Kd3 {[%clk 0:00:07.1]} 68... Rh3+ {[%clk 0:00:06.3]} 69. Ne3 {[%clk 0:00:07.8]}
69... Rh1 {[%clk 0:00:06.6]} 70. Nc4 {[%clk 0:00:04.5]} 70... Ra1 {[%clk
0:00:07]} 71. Kc2 {[%clk 0:00:03.8]} 71... Rxa2+ {[%clk 0:00:06.7]} 72. Nb2
{[%clk 0:00:04.7]} 72... Ra1 {[%clk 0:00:06.6]} 73. Bc4 {[%clk 0:00:05.3]} 73...
Rh1 {[%clk 0:00:05.7]} 74. Nd3+ {[%clk 0:00:06.2]} 74... Kd4 {[%clk 0:00:05.2]}
75. Nxb4 {[%clk 0:00:07.1]} 75... Rh2+ {[%clk 0:00:05.8]} 76. Kb1 {[%clk
0:00:07]} 76... Kc3 {[%clk 0:00:06.3]} 77. Na2+ {[%clk 0:00:07.7]} 77... Kd4
{[%clk 0:00:06.1]} 78. Bf7 {[%clk 0:00:08.4]} 78... Rf2 {[%clk 0:00:04.8]} 79.
Bg8 {[%clk 0:00:08.8]} 79... Kc5 {[%clk 0:00:04.9]} 80. Bh7 {[%clk 0:00:08.1]}
80... Kb5 {[%clk 0:00:04.6]} 81. Bc2 {[%clk 0:00:08.6]} 81... Kc5 {[%clk
0:00:05.2]} 82. Kb2 {[%clk 0:00:09.5]} 82... Kb5 {[%clk 0:00:05.5]} 83. Kc3
{[%clk 0:00:10.2]} 83... Kc5 {[%clk 0:00:05.7]} 84. Nb4 {[%clk 0:00:10.5]} 84...
Rf3+ {[%clk 0:00:05.7]} 85. Nd3+ {[%clk 0:00:10.9]} 85... Kb5 {[%clk 0:00:06.4]}
86. Bd1 {[%clk 0:00:11.8]} 86... Rg3 {[%clk 0:00:06.2]} 87. Bh5 {[%clk
0:00:12.2]} 87... Rh3 {[%clk 0:00:05.9]} 88. Be8+ {[%clk 0:00:12.1]} 88... Kb6
{[%clk 0:00:05.5]} 89. Bg6 {[%clk 0:00:12.1]} 89... Rg3 {[%clk 0:00:04]} 90. Be4
{[%clk 0:00:12.4]} 90... Kb5 {[%clk 0:00:03.8]} 91. Bd5 {[%clk 0:00:12.3]} 91...
Rh3 {[%clk 0:00:03.6]} 92. Bc4+ {[%clk 0:00:13.2]} 92... Kc6 {[%clk 0:00:03.7]}
93. b4 {[%clk 0:00:14.1]} 93... Rh1 {[%clk 0:00:03.8]} 94. Kd4 {[%clk
0:00:13.5]} 94... Rb1 {[%clk 0:00:03.6]} 95. Kc3 {[%clk 0:00:13.9]} 95... Kb6
{[%clk 0:00:03.5]} 96. Bb3 {[%clk 0:00:14.1]} 96... Kc6 {[%clk 0:00:03.7]} 97.
Bc2 {[%clk 0:00:12.9]} 97... Ra1 {[%clk 0:00:03.4]} 98. Kc4 {[%clk 0:00:13.1]}
98... Ra2 {[%clk 0:00:02]} 99. Bb3 {[%clk 0:00:12.3]} 99... Ra1 {[%clk
0:00:02.4]} 100. b5+ {[%clk 0:00:10.6]} 100... Kb6 {[%clk 0:00:03]} 101. Kb4
{[%clk 0:00:11]} 101... Rh1 {[%clk 0:00:03]} 102. Nc5 {[%clk 0:00:10.7]} 102...
Rh4+ {[%clk 0:00:03.2]} 103. Bc4 {[%clk 0:00:11.2]} 103... Rg4 {[%clk
0:00:02.5]} 104. Na4+ {[%clk 0:00:12]} 104... Kb7 {[%clk 0:00:03.1]} 105. Kc5
{[%clk 0:00:12.9]} 105... Rg5+ {[%clk 0:00:03.2]} 106. Bd5+ {[%clk 0:00:13.6]}
106... Kb8 {[%clk 0:00:02.3]} 107. Nb6 {[%clk 0:00:14]} 107... Rg1 {[%clk
0:00:02.4]} 108. Kc6 {[%clk 0:00:13.4]} 108... Rc1+ {[%clk 0:00:02]} 109. Bc4
{[%clk 0:00:14]} 109... Rb1 {[%clk 0:00:02.5]} 110. Nd7+ {[%clk 0:00:14.4]}
110... Kc8 {[%clk 0:00:02.5]} 111. b6 {[%clk 0:00:15.1]} 111... Rxb6+ {[%clk
0:00:02.1]} 112. Nxb6+ {[%clk 0:00:15.4]} 112... Kd8 {[%clk 0:00:02.8]} 113. Kd6
{[%clk 0:00:14.4]} 113... Ke8 {[%clk 0:00:03.3]} 114. Nd7 {[%clk 0:00:14.5]}
114... Kd8 {[%clk 0:00:02.9]} 115. Bf7 {[%clk 0:00:15.2]} 115... Kc8 {[%clk
0:00:03]} 116. Nc5 {[%clk 0:00:15.9]} 116... Kd8 {[%clk 0:00:03.5]} 117. Nb7+
{[%clk 0:00:15.5]} 117... Kc8 {[%clk 0:00:03.8]} 118. Kc6 {[%clk 0:00:16.1]}
118... Kb8 {[%clk 0:00:04.1]} 119. Be6 {[%clk 0:00:16.6]} 119... Ka8 {[%clk
0:00:04.4]} 120. Kc7 {[%clk 0:00:14.1]} 120... Ka7 {[%clk 0:00:04.8]} 121. Nc5
{[%clk 0:00:14.7]} 121... Ka8 {[%clk 0:00:05]} 122. Nd7 {[%clk 0:00:14.3]}
122... Ka7 {[%clk 0:00:05.5]} 123. Bc4 {[%clk 0:00:15]} 123... Ka8 {[%clk
0:00:05.9]} 124. Nb6+ {[%clk 0:00:15.4]} 124... Ka7 {[%clk 0:00:06.3]} 125. Nc8+
{[%clk 0:00:16.1]} 125... Ka8 {[%clk 0:00:06.8]} 126. Bd5# {[%clk 0:00:16.9]}
1-0

[Event "Late-Titled-Tuesday-Blitz-May-07-2024"]
[Site "Chess.com"]
[Date "2024.05.07"]
[Round "6"]
[White "IsaqueGoncalvesSanto"]
[Black "ChEsper99"]
[Result "0-1"]
[WhiteElo "1821"]
[BlackElo "2296"]
[TimeControl "180+1"]
[EndTime "15:01:45 PDT"]
[Termination "ChEsper99 won by resignation"]

1. d4 {[%clk 0:02:53.9]} 1... g6 {[%clk 0:02:56.6]} 2. c4 {[%clk 0:02:53.3]}
2... Bg7 {[%clk 0:02:56.9]} 3. Nc3 {[%clk 0:02:53.3]} 3... d6 {[%clk 0:02:57.4]}
4. e4 {[%clk 0:02:53.3]} 4... Nf6 {[%clk 0:02:57.8]} 5. f3 {[%clk 0:02:53.3]}
5... O-O {[%clk 0:02:58.1]} 6. Be3 {[%clk 0:02:53.3]} 6... c5 {[%clk 0:02:51.4]}
7. d5 {[%clk 0:02:52.1]} 7... Qa5 {[%clk 0:02:42.7]} 8. Qd2 {[%clk 0:02:51]}
8... e6 {[%clk 0:02:41.9]} 9. dxe6 {[%clk 0:02:42.7]} 9... Bxe6 {[%clk
0:02:41.6]} 10. Qxd6 {[%clk 0:02:41.8]} 10... Nxe4 {[%clk 0:02:30.3]} 11. fxe4
{[%clk 0:02:30.1]} 11... Bxc3+ {[%clk 0:02:30]} 12. Kf2 {[%clk 0:02:29.6]} 12...
Bxb2 {[%clk 0:02:18.6]} 13. Bxc5 {[%clk 0:02:28]} 13... Rd8 {[%clk 0:02:11.5]}
0-1

[Event "Late-Titled-Tuesday-Blitz-May-07-2024"]
[Site "Chess.com"]
[Date "2024.05.07"]
[Round "6"]
[White "secretworker2027"]
[Black "TheoSlade"]
[Result "1-0"]
[WhiteElo "2661"]
[BlackElo "2472"]
[TimeControl "180+1"]
[EndTime "15:02:30 PDT"]
[Termination "secretworker2027 won by resignation"]

1. e4 {[%clk 0:03:00.9]} 1... e5 {[%clk 0:02:58.9]} 2. Nf3 {[%clk 0:03:00.8]}
2... Nc6 {[%clk 0:02:59.4]} 3. Bc4 {[%clk 0:03:01.5]} 3... Bc5 {[%clk
0:02:59.1]} 4. c3 {[%clk 0:03:01.8]} 4... Nf6 {[%clk 0:02:59.5]} 5. d4 {[%clk
0:03:02.3]} 5... exd4 {[%clk 0:02:59.7]} 6. b4 {[%clk 0:03:02.8]} 6... Bb6
{[%clk 0:02:51.4]} 7. e5 {[%clk 0:03:02.3]} 7... d5 {[%clk 0:02:51.6]} 8. exf6
{[%clk 0:03:02.6]} 8... dxc4 {[%clk 0:02:51.7]} 9. Qe2+ {[%clk 0:03:03.3]} 9...
Be6 {[%clk 0:02:51.1]} 10. b5 {[%clk 0:03:03.7]} 10... Na5 {[%clk 0:02:24.3]}
11. fxg7 {[%clk 0:02:56.9]} 11... Rg8 {[%clk 0:02:24.5]} 12. cxd4 {[%clk
0:02:57.1]} 12... Qd7 {[%clk 0:02:22.1]} 13. Bg5 {[%clk 0:02:52.3]} 13... Rxg7
{[%clk 0:02:19.3]} 14. O-O {[%clk 0:02:49.1]} 14... Qxb5 {[%clk 0:02:11.7]} 15.
Nc3 {[%clk 0:02:47.4]} 15... Qb4 {[%clk 0:01:55.4]} 16. d5 {[%clk 0:02:45.5]}
16... Qxc3 {[%clk 0:01:53.7]} 17. dxe6 {[%clk 0:02:45.8]} 17... Qd3 {[%clk
0:01:26.6]} 18. exf7+ {[%clk 0:02:43.5]} 18... Kxf7 {[%clk 0:01:22.2]} 19. Ne5+
{[%clk 0:02:43.5]} 19... Kg8 {[%clk 0:01:05.5]} 20. Nxd3 {[%clk 0:02:43.4]}
20... cxd3 {[%clk 0:01:05.6]} 21. Qe6+ {[%clk 0:02:43]} 21... Kh8 {[%clk
0:01:04.9]} 22. Bf6 {[%clk 0:02:42.9]} 1-0

[Event "Late-Titled-Tuesday-Blitz-May-07-2024"]
[Site "Chess.com"]
[Date "2024.05.07"]
[Round "6"]
[White "super_emi_26"]
[Black "Polish_fighter3000"]
[Result "0-1"]
[WhiteElo "2851"]
[BlackElo "3120"]
[TimeControl "180+1"]
[EndTime "15:02:54 PDT"]
[Termination "Polish_fighter3000 won by resignation"]

1. b3 {[%clk 0:03:00.9]} 1... e5 {[%clk 0:02:58.1]} 2. Bb2 {[%clk 0:03:01.1]}
2... Nc6 {[%clk 0:02:58.7]} 3. e3 {[%clk 0:03:01.5]} 3... a6 {[%clk 0:02:54.6]}
4. Nc3 {[%clk 0:02:58.8]} 4... d5 {[%clk 0:02:53.7]} 5. d4 {[%clk 0:02:50]} 5...
exd4 {[%clk 0:02:51]} 6. exd4 {[%clk 0:02:50.9]} 6... Nf6 {[%clk 0:02:50.8]} 7.
Nf3 {[%clk 0:02:48.7]} 7... Bd6 {[%clk 0:02:50.3]} 8. Be2 {[%clk 0:02:48.5]}
8... O-O {[%clk 0:02:49.5]} 9. O-O {[%clk 0:02:49.1]} 9... Re8 {[%clk
0:02:46.7]} 10. Re1 {[%clk 0:02:49.2]} 10... Bg4 {[%clk 0:02:42.6]} 11. h3
{[%clk 0:02:49.3]} 11... Bxf3 {[%clk 0:02:40]} 12. Bxf3 {[%clk 0:02:50.2]} 12...
Rxe1+ {[%clk 0:02:39.9]} 13. Qxe1 {[%clk 0:02:47.7]} 13... Nxd4 {[%clk
0:02:40.8]} 14. Qd1 {[%clk 0:02:43.4]} 14... Be5 {[%clk 0:02:31.3]} 15. Qd3
{[%clk 0:02:38.4]} 15... Qd6 {[%clk 0:02:24.9]} 16. Rd1 {[%clk 0:02:29.3]} 16...
c6 {[%clk 0:02:01.7]} 17. Na4 {[%clk 0:02:27.9]} 17... Nxf3+ {[%clk 0:01:49.3]}
18. Qxf3 {[%clk 0:02:28.8]} 18... Bxb2 {[%clk 0:01:47.6]} 19. Nxb2 {[%clk
0:02:29.7]} 19... Qa3 {[%clk 0:01:47.8]} 20. Na4 {[%clk 0:02:30]} 20... Qxa2
{[%clk 0:01:44.5]} 21. Qd3 {[%clk 0:02:30.3]} 21... Qa3 {[%clk 0:01:35]} 22. Re1
{[%clk 0:02:29.3]} 22... Qd6 {[%clk 0:01:32.1]} 23. c4 {[%clk 0:02:29.5]} 23...
h6 {[%clk 0:01:29.7]} 24. Nb6 {[%clk 0:02:26.7]} 24... Rd8 {[%clk 0:01:27.9]}
25. Qf5 {[%clk 0:02:16.8]} 25... Qb4 {[%clk 0:01:24]} 0-1

[Event "Late-Titled-Tuesday-Blitz-May-07-2024"]
[Site "Chess.com"]
[Date "2024.05.07"]
[Round "6"]
[White "NM_Koval"]
[Black "Walter_White_Poland"]
[Result "0-1"]
[WhiteElo "2237"]
[BlackElo "2417"]
[TimeControl "180+1"]
[EndTime "15:02:55 PDT"]
[Termination "Walter_White_Poland won by resignation"]

1. d4 {[%clk 0:02:55.2]} 1... d5 {[%clk 0:02:59.8]} 2. c4 {[%clk 0:02:52.7]}
2... e6 {[%clk 0:02:59.7]} 3. Nc3 {[%clk 0:02:52.5]} 3... Be7 {[%clk 0:02:58.1]}
4. Bf4 {[%clk 0:02:51.8]} 4... Nf6 {[%clk 0:02:57.1]} 5. e3 {[%clk 0:02:52]}
5... O-O {[%clk 0:02:56.4]} 6. h3 {[%clk 0:02:52.3]} 6... c5 {[%clk 0:02:56.3]}
7. Nf3 {[%clk 0:02:51]} 7... Nc6 {[%clk 0:02:53.7]} 8. Rc1 {[%clk 0:02:47.6]}
8... cxd4 {[%clk 0:02:47.3]} 9. exd4 {[%clk 0:02:40.8]} 9... b6 {[%clk 0:02:47]}
10. Be2 {[%clk 0:02:27.9]} 10... Bb7 {[%clk 0:02:45.8]} 11. O-O {[%clk
0:02:26.3]} 11... dxc4 {[%clk 0:02:45.2]} 12. Bxc4 {[%clk 0:02:24.9]} 12... Nb4
{[%clk 0:02:31.1]} 13. Be5 {[%clk 0:02:16]} 13... Rc8 {[%clk 0:02:27.8]} 14. Be2
{[%clk 0:02:08.1]} 14... a5 {[%clk 0:02:01.7]} 15. a3 {[%clk 0:02:06.9]} 15...
Nbd5 {[%clk 0:02:00.7]} 16. Qd2 {[%clk 0:02:06]} 16... Nxc3 {[%clk 0:01:52.5]}
17. Rxc3 {[%clk 0:02:04.4]} 17... Rxc3 {[%clk 0:01:32.2]} 18. Qxc3 {[%clk
0:02:03.4]} 18... Qc8 {[%clk 0:01:25.8]} 19. Bc7 {[%clk 0:01:56.6]} 19... Nd5
{[%clk 0:01:24.1]} 0-1

[Event "Late-Titled-Tuesday-Blitz-May-07-2024"]
[Site "Chess.com"]
[Date "2024.05.07"]
[Round "6"]
[White "cycygogne"]
[Black "Zampronha1971"]
[Result "0-1"]
[WhiteElo "2175"]
[BlackElo "2461"]
[TimeControl "180+1"]
[EndTime "15:03:01 PDT"]
[Termination "Zampronha1971 won by resignation"]

1. e4 {[%clk 0:03:00.9]} 1... c5 {[%clk 0:03:00]} 2. Nf3 {[%clk 0:03:00.7]} 2...
e6 {[%clk 0:03:00.3]} 3. d4 {[%clk 0:03:00.3]} 3... cxd4 {[%clk 0:03:01.2]} 4.
Nxd4 {[%clk 0:03:00.7]} 4... Nc6 {[%clk 0:03:01.9]} 5. Nc3 {[%clk 0:03:00.7]}
5... Qc7 {[%clk 0:03:02.1]} 6. Be3 {[%clk 0:03:00.2]} 6... a6 {[%clk 0:03:02.5]}
7. Bd3 {[%clk 0:03:00.3]} 7... Nf6 {[%clk 0:03:02.8]} 8. O-O {[%clk 0:03:00.2]}
8... Ne5 {[%clk 0:03:02.3]} 9. Kh1 {[%clk 0:02:52.9]} 9... Neg4 {[%clk
0:02:56.2]} 10. Nf3 {[%clk 0:02:26.1]} 10... Nxe3 {[%clk 0:02:51.4]} 11. fxe3
{[%clk 0:02:27]} 11... Ng4 {[%clk 0:02:45.6]} 12. Qe2 {[%clk 0:02:11.8]} 12...
Bc5 {[%clk 0:02:44.6]} 13. Nd1 {[%clk 0:02:11.4]} 13... b5 {[%clk 0:02:37.4]}
14. h3 {[%clk 0:02:09.9]} 14... h5 {[%clk 0:02:35.3]} 15. c3 {[%clk 0:02:00.4]}
15... Bb7 {[%clk 0:02:34.3]} 16. a4 {[%clk 0:01:43.7]} 16... b4 {[%clk
0:02:27.4]} 17. cxb4 {[%clk 0:01:42.1]} 17... Bxb4 {[%clk 0:02:28.3]} 18. Nf2
{[%clk 0:01:20.3]} 18... Ne5 {[%clk 0:02:14]} 19. Rac1 {[%clk 0:01:16.1]} 19...
Qd6 {[%clk 0:02:13.1]} 20. Nxe5 {[%clk 0:01:09.5]} 20... Qxe5 {[%clk 0:02:12.5]}
21. Rc4 {[%clk 0:01:10]} 21... Bd6 {[%clk 0:02:10.6]} 0-1